[Event "Titled Tuesday Blitz May 10 Early 2022"]
[White "Nguyen Hong Nhung"]
[Black "Marin Ramirez, Gerardo"]
[WhiteFideId "12412201"]
[BlackFideId "3901068"]
[WhiteElo "1758"]
[BlackElo "1920"]
[Result "1-0"]
[Round "04"]
[TimeControl "180+1"]
[Date "2022.05.11"]
[WhiteClock "0:01:11"]
[BlackClock "0:00:05"]

1. e4 {[%clk 0:03:00]}  c5 {[%clk 0:02:56]} 2. Nc3 {[%clk 0:03:00]}  a6 {[%clk 0:02:53]} 3. a4 {[%clk 0:02:59]}  Nc6 {[%clk 0:02:50]} 4. f4 {[%clk 0:02:59]}  g6 {[%clk 0:02:49]} 5. Nf3 {[%clk 0:02:59]}  Bg7 {[%clk 0:02:49]} 6. Bc4 {[%clk 0:03:00]}  d6 {[%clk 0:02:49]} 7. O-O {[%clk 0:02:59]}  e6 {[%clk 0:02:48]} 8. d3 {[%clk 0:02:59]}  Nge7 {[%clk 0:02:47]} 9. Qe1 {[%clk 0:02:59]}  O-O {[%clk 0:02:43]} 10. f5 {[%clk 0:02:59]}  d5 {[%clk 0:02:42]} 11. Bb3 {[%clk 0:02:58]}  gxf5 {[%clk 0:02:32]} 12. Qh4 {[%clk 0:02:53]}  fxe4 {[%clk 0:02:22]} 13. dxe4 {[%clk 0:02:52]}  c4 {[%clk 0:02:13]} 14. Ba2 {[%clk 0:02:34]}  Ng6 {[%clk 0:02:08]} 15. Qh5 {[%clk 0:02:33]}  Nd4 {[%clk 0:02:01]} 16. exd5 {[%clk 0:02:27]}  exd5 {[%clk 0:01:42]} 17. Nxd5 {[%clk 0:02:08]}  Nxf3+ {[%clk 0:01:14]} 18. Qxf3 {[%clk 0:01:53]}  Ne5 {[%clk 0:00:22]} 19. Qe4 {[%clk 0:01:35]}  Be6 {[%clk 0:00:18]} 20. Nf4 {[%clk 0:01:29]}  Bd7 {[%clk 0:00:06]} 21. Bxc4 {[%clk 0:01:18]}  Bc6 {[%clk 0:00:05]} 22. Bd5 {[%clk 0:01:11]} 1-0


[Site "https://www.chess.com"]

[Event "Titled Tuesday Blitz May 10 Early 2022"]
[White "Nugumanov, Bakhtiyar"]
[Black "Ljukin, Sergei"]
[WhiteFideId "13701797"]
[BlackFideId "14102200"]
[WhiteElo "2262"]
[BlackElo "2312"]
[Result "0-1"]
[Round "04"]
[TimeControl "180+1"]
[Date "2022.05.11"]
[WhiteClock "0:00:01"]
[BlackClock "0:00:03"]

1. Nf3 {[%clk 0:02:46]}  d5 {[%clk 0:02:48]} 2. g3 {[%clk 0:02:45]}  Nc6 {[%clk 0:02:48]} 3. Bg2 {[%clk 0:02:45]}  e5 {[%clk 0:02:48]} 4. d3 {[%clk 0:02:30]}  Bg4 {[%clk 0:02:47]} 5. O-O {[%clk 0:02:27]}  Qd7 {[%clk 0:02:48]} 6. c4 {[%clk 0:02:26]}  dxc4 {[%clk 0:02:46]} 7. Qa4 {[%clk 0:02:22]}  cxd3 {[%clk 0:02:35]} 8. exd3 {[%clk 0:02:20]}  Nf6 {[%clk 0:02:22]} 9. Re1 {[%clk 0:02:16]}  Bd6 {[%clk 0:02:21]} 10. d4 {[%clk 0:02:14]}  Bxf3 {[%clk 0:02:03]} 11. Bxf3 {[%clk 0:01:57]}  e4 {[%clk 0:01:47]} 12. Nc3 {[%clk 0:01:46]}  O-O {[%clk 0:01:42]} 13. Nxe4 {[%clk 0:01:41]}  Nxe4 {[%clk 0:01:41]} 14. Bxe4 {[%clk 0:01:40]}  Rfe8 {[%clk 0:01:36]} 15. Bd2 {[%clk 0:01:33]}  Rab8 {[%clk 0:01:04]} 16. Bc3 {[%clk 0:00:57]}  b5 {[%clk 0:01:01]} 17. Qc2 {[%clk 0:00:49]}  b4 {[%clk 0:00:58]} 18. Bf5 {[%clk 0:00:35]}  Qd8 {[%clk 0:00:46]} 19. Bxh7+ {[%clk 0:00:34]}  Kh8 {[%clk 0:00:44]} 20. Bd2 {[%clk 0:00:14]}  Nxd4 {[%clk 0:00:40]} 21. Qd3 {[%clk 0:00:14]}  Qf6 {[%clk 0:00:31]} 22. Be4 {[%clk 0:00:13]}  c5 {[%clk 0:00:27]} 23. h4 {[%clk 0:00:12]}  g6 {[%clk 0:00:13]} 24. Bg5 {[%clk 0:00:12]}  Qg7 {[%clk 0:00:13]} 25. Bd5 {[%clk 0:00:06]}  Re5 {[%clk 0:00:10]} 26. Rxe5 {[%clk 0:00:06]}  Bxe5 {[%clk 0:00:11]} 27. Re1 {[%clk 0:00:04]}  Rd8 {[%clk 0:00:10]} 28. Qc4 {[%clk 0:00:04]}  f6 {[%clk 0:00:10]} 29. Qxc5 {[%clk 0:00:04]}  fxg5 {[%clk 0:00:09]} 30. hxg5 {[%clk 0:00:03]}  Bd6 {[%clk 0:00:06]} 31. Qc4 {[%clk 0:00:02]}  Be5 {[%clk 0:00:06]} 32. Re4 {[%clk 0:00:02]}  Qd7 {[%clk 0:00:04]} 33. Rh4+ {[%clk 0:00:02]}  Kg7 {[%clk 0:00:04]} 34. Be4 {[%clk 0:00:01]}  Qd6 {[%clk 0:00:03]} 35. Kg2 {[%clk 0:00:01]}  Rf8 {[%clk 0:00:03]} 0-1


[Site "https://www.chess.com"]

[Event "Titled Tuesday Blitz May 10 Early 2022"]
[White "Padmini, Rout"]
[Black "Muradov, Soltan"]
[WhiteFideId "5029295"]
[BlackFideId "14002108"]
[WhiteElo "2181"]
[BlackElo "1854"]
[Result "1-0"]
[Round "04"]
[TimeControl "180+1"]
[Date "2022.05.11"]
[WhiteClock "0:00:07"]
[BlackClock "0:00:03"]

1. e4 {[%clk 0:03:00]}  e5 {[%clk 0:03:00]} 2. Nf3 {[%clk 0:03:00]}  Nf6 {[%clk 0:03:01]} 3. d4 {[%clk 0:02:59]}  Nxe4 {[%clk 0:03:00]} 4. Bd3 {[%clk 0:02:58]}  d5 {[%clk 0:03:00]} 5. dxe5 {[%clk 0:02:55]}  Bc5 {[%clk 0:03:00]} 6. O-O {[%clk 0:02:55]}  O-O {[%clk 0:02:52]} 7. c4 {[%clk 0:02:55]}  c6 {[%clk 0:02:51]} 8. Nc3 {[%clk 0:02:50]}  Nxc3 {[%clk 0:02:50]} 9. bxc3 {[%clk 0:02:45]}  dxc4 {[%clk 0:02:33]} 10. Bxc4 {[%clk 0:02:46]}  Bg4 {[%clk 0:02:21]} 11. h3 {[%clk 0:02:43]}  Bh5 {[%clk 0:02:13]} 12. g4 {[%clk 0:02:41]}  Bg6 {[%clk 0:02:13]} 13. Qe2 {[%clk 0:02:40]}  Nd7 {[%clk 0:01:39]} 14. Rd1 {[%clk 0:02:07]}  Qc7 {[%clk 0:01:32]} 15. e6 {[%clk 0:02:00]}  Nb6 {[%clk 0:01:30]} 16. Ne5 {[%clk 0:01:30]}  Nxc4 {[%clk 0:01:22]} 17. Nxc4 {[%clk 0:01:22]}  fxe6 {[%clk 0:01:19]} 18. Be3 {[%clk 0:01:21]}  Be7 {[%clk 0:01:03]} 19. Bd4 {[%clk 0:01:01]}  Bh4 {[%clk 0:01:00]} 20. Ne5 {[%clk 0:00:57]}  Be8 {[%clk 0:00:44]} 21. c4 {[%clk 0:00:43]}  c5 {[%clk 0:00:44]} 22. Bc3 {[%clk 0:00:43]}  Rd8 {[%clk 0:00:33]} 23. Rxd8 {[%clk 0:00:38]}  Qxd8 {[%clk 0:00:33]} 24. Nf3 {[%clk 0:00:28]}  Bc6 {[%clk 0:00:24]} 25. Nxh4 {[%clk 0:00:26]}  Qxh4 {[%clk 0:00:23]} 26. Qe3 {[%clk 0:00:17]}  h6 {[%clk 0:00:20]} 27. f4 {[%clk 0:00:16]}  e5 {[%clk 0:00:12]} 28. Bxe5 {[%clk 0:00:14]}  Rd8 {[%clk 0:00:12]} 29. Re1 {[%clk 0:00:12]}  Re8 {[%clk 0:00:06]} 30. Re2 {[%clk 0:00:12]}  Re7 {[%clk 0:00:06]} 31. Qxc5 {[%clk 0:00:11]}  Qg3+ {[%clk 0:00:05]} 32. Kf1 {[%clk 0:00:11]}  Qf3+ {[%clk 0:00:04]} 33. Ke1 {[%clk 0:00:11]}  Qh1+ {[%clk 0:00:04]} 34. Kd2 {[%clk 0:00:11]}  Rd7+ {[%clk 0:00:04]} 35. Bd6 {[%clk 0:00:08]}  Qxh3 {[%clk 0:00:03]} 36. Re8+ {[%clk 0:00:08]}  Kh7 {[%clk 0:00:03]} 37. Qf5+ {[%clk 0:00:08]}  g6 {[%clk 0:00:03]} 38. Qe5 {[%clk 0:00:08]}  Qg2+ {[%clk 0:00:02]} 39. Kc3 {[%clk 0:00:08]}  Qf3+ {[%clk 0:00:02]} 40. Kb4 {[%clk 0:00:08]}  Rxd6 {[%clk 0:00:03]} 41. Rh8# {[%clk 0:00:07]} 1-0


[Site "https://www.chess.com"]

[Event "Titled Tuesday Blitz May 10 Early 2022"]
[White "Piliczewski, Bogusz"]
[Black "Le Ruyet, Leopold"]
[WhiteFideId "1104144"]
[BlackFideId "645923"]
[WhiteElo "1896"]
[BlackElo "2276"]
[Result "0-1"]
[Round "04"]
[TimeControl "180+1"]
[Date "2022.05.11"]
[WhiteClock "0:00:06"]
[BlackClock "0:00:13"]

1. d4 {[%clk 0:02:58]}  Nf6 {[%clk 0:02:59]} 2. Nf3 {[%clk 0:02:57]}  g6 {[%clk 0:02:59]} 3. Bf4 {[%clk 0:02:57]}  Bg7 {[%clk 0:02:59]} 4. e3 {[%clk 0:02:58]}  d5 {[%clk 0:02:56]} 5. h3 {[%clk 0:02:57]}  c5 {[%clk 0:02:54]} 6. c3 {[%clk 0:02:56]}  cxd4 {[%clk 0:02:53]} 7. cxd4 {[%clk 0:02:55]}  O-O {[%clk 0:02:53]} 8. Be2 {[%clk 0:02:54]}  Qb6 {[%clk 0:02:49]} 9. Qb3 {[%clk 0:02:45]}  Qxb3 {[%clk 0:02:47]} 10. axb3 {[%clk 0:02:44]}  Nc6 {[%clk 0:02:43]} 11. O-O {[%clk 0:02:42]}  Bf5 {[%clk 0:02:42]} 12. Nc3 {[%clk 0:02:41]}  Bc2 {[%clk 0:02:39]} 13. Nd2 {[%clk 0:02:27]}  h6 {[%clk 0:02:27]} 14. Rfc1 {[%clk 0:02:24]}  Bf5 {[%clk 0:02:26]} 15. Ra4 {[%clk 0:02:06]}  g5 {[%clk 0:02:24]} 16. Bh2 {[%clk 0:02:04]}  e6 {[%clk 0:02:13]} 17. b4 {[%clk 0:01:55]}  a6 {[%clk 0:01:41]} 18. b5 {[%clk 0:01:51]}  axb5 {[%clk 0:01:39]} 19. Bxb5 {[%clk 0:01:51]}  Nd7 {[%clk 0:01:31]} 20. Rca1 {[%clk 0:01:45]}  Rac8 {[%clk 0:01:27]} 21. Bd6 {[%clk 0:01:33]}  Rfd8 {[%clk 0:01:23]} 22. Bh2 {[%clk 0:01:23]}  Nb6 {[%clk 0:01:20]} 23. Bxc6 {[%clk 0:01:16]}  bxc6 {[%clk 0:01:08]} 24. Ra6 {[%clk 0:01:16]}  Nd7 {[%clk 0:00:47]} 25. Ra7 {[%clk 0:01:12]}  e5 {[%clk 0:00:40]} 26. dxe5 {[%clk 0:00:56]}  Nxe5 {[%clk 0:00:41]} 27. Rb7 {[%clk 0:00:43]}  Nd3 {[%clk 0:00:39]} 28. Nd1 {[%clk 0:00:32]}  c5 {[%clk 0:00:34]} 29. Raa7 {[%clk 0:00:30]}  Bg6 {[%clk 0:00:31]} 30. Bc7 {[%clk 0:00:16]}  Re8 {[%clk 0:00:29]} 31. Bb6 {[%clk 0:00:11]}  c4 {[%clk 0:00:19]} 32. Ba5 {[%clk 0:00:06]}  d4 {[%clk 0:00:13]} 0-1


[Site "https://www.chess.com"]

[Event "Titled Tuesday Blitz May 10 Early 2022"]
[White "Pinero Rodriguez, Carlos Jose"]
[Black "Dounis, Alexandros"]
[WhiteFideId "3901726"]
[BlackFideId "4213238"]
[WhiteElo "2053"]
[BlackElo "2204"]
[Result "0-1"]
[Round "04"]
[TimeControl "180+1"]
[Date "2022.05.11"]
[WhiteClock "0:00:02"]
[BlackClock "0:00:24"]

1. e4 {[%clk 0:03:00]}  d5 {[%clk 0:02:58]} 2. exd5 {[%clk 0:02:59]}  Nf6 {[%clk 0:02:56]} 3. Nc3 {[%clk 0:02:57]}  Nxd5 {[%clk 0:02:55]} 4. Nf3 {[%clk 0:02:57]}  Nxc3 {[%clk 0:02:51]} 5. bxc3 {[%clk 0:02:57]}  e6 {[%clk 0:02:49]} 6. d4 {[%clk 0:02:49]}  Be7 {[%clk 0:02:44]} 7. Bd3 {[%clk 0:02:48]}  O-O {[%clk 0:02:44]} 8. O-O {[%clk 0:02:47]}  Nd7 {[%clk 0:02:43]} 9. Re1 {[%clk 0:02:41]}  b6 {[%clk 0:02:41]} 10. Ne5 {[%clk 0:02:35]}  Nxe5 {[%clk 0:02:40]} 11. Rxe5 {[%clk 0:02:33]}  Bb7 {[%clk 0:02:36]} 12. Qg4 {[%clk 0:02:17]}  g6 {[%clk 0:02:22]} 13. Bh6 {[%clk 0:02:01]}  Re8 {[%clk 0:02:18]} 14. Rae1 {[%clk 0:01:59]}  Bf6 {[%clk 0:02:18]} 15. R5e3 {[%clk 0:01:54]}  Bg7 {[%clk 0:02:05]} 16. Bxg7 {[%clk 0:01:41]}  Kxg7 {[%clk 0:02:06]} 17. h4 {[%clk 0:01:39]}  h5 {[%clk 0:02:05]} 18. Qg3 {[%clk 0:01:38]}  Qd6 {[%clk 0:02:02]} 19. Qe5+ {[%clk 0:01:16]}  Qxe5 {[%clk 0:02:00]} 20. Rxe5 {[%clk 0:01:14]}  Red8 {[%clk 0:01:58]} 21. f3 {[%clk 0:01:05]}  Rac8 {[%clk 0:01:52]} 22. a4 {[%clk 0:01:02]}  c5 {[%clk 0:01:42]} 23. dxc5 {[%clk 0:00:57]}  bxc5 {[%clk 0:01:36]} 24. Rb1 {[%clk 0:00:43]}  Bc6 {[%clk 0:01:30]} 25. Bb5 {[%clk 0:00:40]}  Bxb5 {[%clk 0:01:16]} 26. Rxb5 {[%clk 0:00:37]}  Rd2 {[%clk 0:01:17]} 27. Rexc5 {[%clk 0:00:33]}  Rcd8 {[%clk 0:01:11]} 28. Rb7 {[%clk 0:00:18]}  Rxc2 {[%clk 0:01:01]} 29. Rcc7 {[%clk 0:00:14]}  Rdd2 {[%clk 0:00:47]} 30. Rxf7+ {[%clk 0:00:13]}  Kg8 {[%clk 0:00:45]} 31. Rg7+ {[%clk 0:00:12]}  Kf8 {[%clk 0:00:45]} 32. Rxg6 {[%clk 0:00:12]}  Rxc3 {[%clk 0:00:42]} 33. Rxa7 {[%clk 0:00:10]}  Rc8 {[%clk 0:00:37]} 34. Rh6 {[%clk 0:00:09]}  Kg8 {[%clk 0:00:36]} 35. Rxe6 {[%clk 0:00:08]}  Rd5 {[%clk 0:00:31]} 36. Rg6+ {[%clk 0:00:07]}  Kh8 {[%clk 0:00:30]} 37. Rg5 {[%clk 0:00:07]}  Rxg5 {[%clk 0:00:25]} 38. hxg5 {[%clk 0:00:07]}  Rc5 {[%clk 0:00:25]} 39. f4 {[%clk 0:00:04]}  h4 {[%clk 0:00:25]} 40. Kh2 {[%clk 0:00:02]}  Rc4 {[%clk 0:00:24]} 41. Kh3 {[%clk 0:00:02]}  Rxf4 {[%clk 0:00:24]} 0-1


[Site "https://www.chess.com"]

[Event "Titled Tuesday Blitz May 10 Early 2022"]
[White "Przybylski, Wojciech"]
[Black "Harshavardhan G B"]
[WhiteFideId "1117599"]
[BlackFideId "25059009"]
[WhiteElo "2133"]
[BlackElo "1831"]
[Result "0-1"]
[Round "04"]
[TimeControl "180+1"]
[Date "2022.05.11"]
[WhiteClock "0:00:04"]
[BlackClock "0:00:18"]

1. d4 {[%clk 0:03:00]}  Nf6 {[%clk 0:02:57]} 2. c4 {[%clk 0:03:00]}  e5 {[%clk 0:02:56]} 3. e3 {[%clk 0:02:58]}  exd4 {[%clk 0:02:54]} 4. exd4 {[%clk 0:02:59]}  d5 {[%clk 0:02:55]} 5. c5 {[%clk 0:02:58]}  g6 {[%clk 0:02:53]} 6. Nf3 {[%clk 0:02:56]}  Bg7 {[%clk 0:02:53]} 7. Be2 {[%clk 0:02:56]}  O-O {[%clk 0:02:52]} 8. Nc3 {[%clk 0:02:56]}  Re8 {[%clk 0:02:51]} 9. O-O {[%clk 0:02:56]}  Nc6 {[%clk 0:02:48]} 10. h3 {[%clk 0:02:55]}  Ne4 {[%clk 0:02:45]} 11. Be3 {[%clk 0:02:54]}  b6 {[%clk 0:02:25]} 12. Bb5 {[%clk 0:02:48]}  Nxc3 {[%clk 0:02:13]} 13. bxc3 {[%clk 0:02:47]}  Re6 {[%clk 0:02:06]} 14. Ng5 {[%clk 0:02:26]}  Rf6 {[%clk 0:01:59]} 15. Nf3 {[%clk 0:02:14]}  Ne7 {[%clk 0:01:46]} 16. Ne5 {[%clk 0:02:09]}  Re6 {[%clk 0:01:43]} 17. Nd3 {[%clk 0:01:46]}  Nf5 {[%clk 0:01:27]} 18. Bf4 {[%clk 0:01:40]}  c6 {[%clk 0:01:22]} 19. Ba4 {[%clk 0:01:37]}  Ba6 {[%clk 0:01:19]} 20. Re1 {[%clk 0:01:33]}  Bxd3 {[%clk 0:01:11]} 21. Qxd3 {[%clk 0:01:29]}  bxc5 {[%clk 0:01:10]} 22. Rxe6 {[%clk 0:01:24]}  fxe6 {[%clk 0:01:11]} 23. dxc5 {[%clk 0:01:21]}  Rc8 {[%clk 0:00:58]} 24. g4 {[%clk 0:01:17]}  Nh4 {[%clk 0:00:52]} 25. Qa6 {[%clk 0:00:57]}  Qd7 {[%clk 0:00:31]} 26. Qd3 {[%clk 0:00:44]}  e5 {[%clk 0:00:27]} 27. Bg5 {[%clk 0:00:44]}  e4 {[%clk 0:00:27]} 28. Qe3 {[%clk 0:00:35]}  Nf3+ {[%clk 0:00:27]} 29. Kg2 {[%clk 0:00:35]}  Qf7 {[%clk 0:00:25]} 30. Rc1 {[%clk 0:00:21]}  Nxg5 {[%clk 0:00:19]} 31. Qxg5 {[%clk 0:00:20]}  Qf3+ {[%clk 0:00:19]} 32. Kg1 {[%clk 0:00:20]}  Qxh3 {[%clk 0:00:20]} 33. c4 {[%clk 0:00:09]}  Bh6 {[%clk 0:00:17]} 34. Qe7 {[%clk 0:00:07]}  Qxg4+ {[%clk 0:00:17]} 35. Kf1 {[%clk 0:00:07]}  Bxc1 {[%clk 0:00:17]} 36. cxd5 {[%clk 0:00:07]}  cxd5 {[%clk 0:00:17]} 37. Bd7 {[%clk 0:00:07]}  Qd1+ {[%clk 0:00:18]} 38. Kg2 {[%clk 0:00:07]}  Qf3+ {[%clk 0:00:18]} 39. Kg1 {[%clk 0:00:07]}  Rf8 {[%clk 0:00:18]} 40. Be6+ {[%clk 0:00:06]}  Kh8 {[%clk 0:00:18]} 41. Qh4 {[%clk 0:00:04]}  e3 {[%clk 0:00:17]} 42. c6 {[%clk 0:00:03]}  exf2+ {[%clk 0:00:17]} 43. Kf1 {[%clk 0:00:04]}  Qd1+ {[%clk 0:00:18]} 0-1


[Site "https://www.chess.com"]

[Event "Titled Tuesday Blitz May 10 Early 2022"]
[White "Rastbod, Ali"]
[Black "Jobava, Baadur"]
[WhiteFideId "12567477"]
[BlackFideId "13601520"]
[WhiteElo "2147"]
[BlackElo "2617"]
[Result "1/2-1/2"]
[Round "04"]
[TimeControl "180+1"]
[Date "2022.05.10"]
[WhiteClock "0:00:07"]
[BlackClock "0:00:37"]

1. c4 {[%clk 0:02:58]}  c6 {[%clk 0:02:59]} 2. Nc3 {[%clk 0:02:57]}  d5 {[%clk 0:03:00]} 3. d4 {[%clk 0:02:57]}  Nf6 {[%clk 0:03:00]} 4. cxd5 {[%clk 0:02:58]}  cxd5 {[%clk 0:03:00]} 5. Bf4 {[%clk 0:02:58]}  Nc6 {[%clk 0:03:01]} 6. e3 {[%clk 0:02:59]}  a6 {[%clk 0:03:01]} 7. Bd3 {[%clk 0:02:58]}  Bg4 {[%clk 0:03:01]} 8. f3 {[%clk 0:02:56]}  Bd7 {[%clk 0:03:01]} 9. Nge2 {[%clk 0:02:54]}  e6 {[%clk 0:03:00]} 10. g4 {[%clk 0:02:52]}  Be7 {[%clk 0:02:58]} 11. h4 {[%clk 0:02:53]}  O-O {[%clk 0:02:58]} 12. h5 {[%clk 0:02:53]}  Ne8 {[%clk 0:02:56]} 13. Kf2 {[%clk 0:02:52]}  Rc8 {[%clk 0:02:53]} 14. Rc1 {[%clk 0:02:52]}  Nd6 {[%clk 0:02:51]} 15. Bb1 {[%clk 0:02:43]}  Nc4 {[%clk 0:02:46]} 16. Qd3 {[%clk 0:02:25]}  f5 {[%clk 0:02:45]} 17. gxf5 {[%clk 0:02:24]}  Nb4 {[%clk 0:02:45]} 18. Qd1 {[%clk 0:02:20]}  Nxb2 {[%clk 0:02:45]} 19. Qd2 {[%clk 0:02:16]}  Nc4 {[%clk 0:02:45]} 20. Qd1 {[%clk 0:02:16]}  exf5 {[%clk 0:02:43]} 21. Qb3 {[%clk 0:01:46]}  Be6 {[%clk 0:02:31]} 22. a3 {[%clk 0:01:42]}  Nxa3 {[%clk 0:02:31]} 23. Be5 {[%clk 0:01:32]}  Nxb1 {[%clk 0:02:30]} 24. Qxb1 {[%clk 0:01:32]}  Nc6 {[%clk 0:02:17]} 25. Nf4 {[%clk 0:01:29]}  Qd7 {[%clk 0:02:17]} 26. Na4 {[%clk 0:01:24]}  Nxe5 {[%clk 0:02:16]} 27. Nb6 {[%clk 0:01:25]}  Rxc1 {[%clk 0:02:15]} 28. Rxc1 {[%clk 0:01:25]}  Bh4+ {[%clk 0:02:13]} 29. Ke2 {[%clk 0:01:23]}  Qd6 {[%clk 0:02:01]} 30. dxe5 {[%clk 0:01:11]}  Qxe5 {[%clk 0:02:02]} 31. Qb3 {[%clk 0:00:50]}  Bg5 {[%clk 0:01:27]} 32. Nxe6 {[%clk 0:00:48]}  Qxe6 {[%clk 0:01:28]} 33. Qxd5 {[%clk 0:00:46]}  Re8 {[%clk 0:01:24]} 34. Qxe6+ {[%clk 0:00:37]}  Rxe6 {[%clk 0:01:25]} 35. Rc8+ {[%clk 0:00:37]}  Kf7 {[%clk 0:01:25]} 36. Nd5 {[%clk 0:00:37]}  Re5 {[%clk 0:01:05]} 37. Rc7+ {[%clk 0:00:29]}  Ke6 {[%clk 0:01:06]} 38. Rxg7 {[%clk 0:00:16]}  Rxd5 {[%clk 0:01:05]} 39. Rxg5 {[%clk 0:00:15]}  a5 {[%clk 0:01:06]} 40. Rg7 {[%clk 0:00:14]}  Rd7 {[%clk 0:01:06]} 41. Rg8 {[%clk 0:00:13]}  b5 {[%clk 0:01:01]} 42. Ra8 {[%clk 0:00:11]}  a4 {[%clk 0:01:01]} 43. Ra5 {[%clk 0:00:09]}  Rd5 {[%clk 0:01:02]} 44. h6 {[%clk 0:00:07]}  Kf6 {[%clk 0:01:00]} 45. e4 {[%clk 0:00:05]}  fxe4 {[%clk 0:01:01]} 46. fxe4 {[%clk 0:00:06]}  Rc5 {[%clk 0:00:59]} 47. Kd3 {[%clk 0:00:06]}  Kg6 {[%clk 0:00:49]} 48. Kd4 {[%clk 0:00:07]}  Rc4+ {[%clk 0:00:49]} 49. Kd5 {[%clk 0:00:06]}  Rb4 {[%clk 0:00:50]} 50. Ra6+ {[%clk 0:00:05]}  Kg5 {[%clk 0:00:49]} 51. e5 {[%clk 0:00:05]}  Rb1 {[%clk 0:00:48]} 52. e6 {[%clk 0:00:05]}  Kf6 {[%clk 0:00:48]} 53. Ra7 {[%clk 0:00:03]}  Rd1+ {[%clk 0:00:47]} 54. Kc5 {[%clk 0:00:04]}  Kxe6 {[%clk 0:00:45]} 55. Kxb5 {[%clk 0:00:04]}  Rd7 {[%clk 0:00:38]} 56. Rxd7 {[%clk 0:00:03]}  Kxd7 {[%clk 0:00:38]} 57. Kxa4 {[%clk 0:00:03]}  Ke6 {[%clk 0:00:38]} 58. Kb3 {[%clk 0:00:04]}  Kf6 {[%clk 0:00:37]} 59. Kc2 {[%clk 0:00:05]}  Kg6 {[%clk 0:00:37]} 60. Kd2 {[%clk 0:00:06]}  Kxh6 {[%clk 0:00:37]} 61. Ke2 {[%clk 0:00:07]} 1/2-1/2


[Site "https://www.chess.com"]

[Event "Titled Tuesday Blitz May 10 Early 2022"]
[White "Ronka, Erik"]
[Black "Maksimovic, Bojan"]
[WhiteFideId "505080"]
[BlackFideId "14408120"]
[WhiteElo "2540"]
[BlackElo "2736"]
[Result "0-1"]
[Round "04"]
[TimeControl "180+1"]
[Date "2022.05.11"]
[WhiteClock "0:00:07"]
[BlackClock "0:00:08"]

1. e4 {[%clk 0:03:00]}  c5 {[%clk 0:02:58]} 2. Nf3 {[%clk 0:03:01]}  Nc6 {[%clk 0:02:58]} 3. d4 {[%clk 0:03:02]}  cxd4 {[%clk 0:02:58]} 4. Nxd4 {[%clk 0:03:02]}  Nf6 {[%clk 0:02:58]} 5. Nc3 {[%clk 0:03:03]}  e5 {[%clk 0:02:59]} 6. Ndb5 {[%clk 0:03:04]}  d6 {[%clk 0:03:00]} 7. Bg5 {[%clk 0:03:04]}  a6 {[%clk 0:03:00]} 8. Na3 {[%clk 0:03:05]}  b5 {[%clk 0:03:01]} 9. Bxf6 {[%clk 0:03:06]}  gxf6 {[%clk 0:03:01]} 10. Nd5 {[%clk 0:03:07]}  f5 {[%clk 0:03:02]} 11. Bd3 {[%clk 0:03:07]}  Be6 {[%clk 0:03:01]} 12. c3 {[%clk 0:03:07]}  Bg7 {[%clk 0:02:58]} 13. Nxb5 {[%clk 0:03:07]}  axb5 {[%clk 0:02:47]} 14. Bxb5 {[%clk 0:03:08]}  Rc8 {[%clk 0:02:26]} 15. Qa4 {[%clk 0:03:07]}  Bd7 {[%clk 0:02:26]} 16. exf5 {[%clk 0:03:08]}  O-O {[%clk 0:02:26]} 17. O-O {[%clk 0:03:08]}  Nb8 {[%clk 0:02:19]} 18. Bxd7 {[%clk 0:02:55]}  Nxd7 {[%clk 0:02:20]} 19. Rfd1 {[%clk 0:02:48]}  Rc5 {[%clk 0:02:10]} 20. Ne3 {[%clk 0:02:40]}  Nb6 {[%clk 0:01:54]} 21. Qg4 {[%clk 0:02:32]}  d5 {[%clk 0:01:46]} 22. a4 {[%clk 0:02:24]}  d4 {[%clk 0:01:47]} 23. cxd4 {[%clk 0:01:50]}  exd4 {[%clk 0:01:48]} 24. b4 {[%clk 0:01:47]}  Rc3 {[%clk 0:01:25]} 25. a5 {[%clk 0:01:23]}  Qf6 {[%clk 0:00:22]} 26. Nf1 {[%clk 0:01:18]}  Nc4 {[%clk 0:00:17]} 27. Ng3 {[%clk 0:01:03]}  Ne5 {[%clk 0:00:17]} 28. Qe4 {[%clk 0:00:53]}  d3 {[%clk 0:00:11]} 29. Nh5 {[%clk 0:00:51]}  Qg5 {[%clk 0:00:11]} 30. Nxg7 {[%clk 0:00:51]}  Qxg7 {[%clk 0:00:12]} 31. a6 {[%clk 0:00:48]}  Rc4 {[%clk 0:00:12]} 32. Qb7 {[%clk 0:00:45]}  f6 {[%clk 0:00:08]} 33. Qb5 {[%clk 0:00:35]}  Rg4 {[%clk 0:00:06]} 34. g3 {[%clk 0:00:34]}  d2 {[%clk 0:00:06]} 35. a7 {[%clk 0:00:33]}  h5 {[%clk 0:00:02]} 36. a8=Q {[%clk 0:00:33]}  Rxa8 {[%clk 0:00:03]} 37. Rxa8+ {[%clk 0:00:32]}  Kh7 {[%clk 0:00:04]} 38. Qc5 {[%clk 0:00:31]}  Nf3+ {[%clk 0:00:03]} 39. Kh1 {[%clk 0:00:31]}  Rd4 {[%clk 0:00:02]} 40. Ra7 {[%clk 0:00:30]}  Rd7 {[%clk 0:00:03]} 41. Rxd7 {[%clk 0:00:30]}  Qxd7 {[%clk 0:00:04]} 42. Qe3 {[%clk 0:00:30]}  Qb7 {[%clk 0:00:04]} 43. Kg2 {[%clk 0:00:20]}  Nh4+ {[%clk 0:00:04]} 44. Kf1 {[%clk 0:00:20]}  Nf3 {[%clk 0:00:03]} 45. Ke2 {[%clk 0:00:19]}  Ne5 {[%clk 0:00:03]} 46. Rxd2 {[%clk 0:00:19]}  Qb5+ {[%clk 0:00:03]} 47. Ke1 {[%clk 0:00:18]}  Qxb4 {[%clk 0:00:03]} 48. f4 {[%clk 0:00:17]}  Nc4 {[%clk 0:00:02]} 49. Qd3 {[%clk 0:00:14]}  Nxd2 {[%clk 0:00:01]} 50. Qxd2 {[%clk 0:00:15]}  Qe4+ {[%clk 0:00:02]} 51. Kf2 {[%clk 0:00:14]}  Qxf5 {[%clk 0:00:02]} 52. Qe2 {[%clk 0:00:15]}  Kg6 {[%clk 0:00:02]} 53. Ke3 {[%clk 0:00:12]}  Qe6+ {[%clk 0:00:02]} 54. Kd2 {[%clk 0:00:12]}  Qc6 {[%clk 0:00:02]} 55. Qd3+ {[%clk 0:00:12]}  Kg7 {[%clk 0:00:03]} 56. Qe2 {[%clk 0:00:12]}  Kg6 {[%clk 0:00:03]} 57. Qd3+ {[%clk 0:00:12]}  Kg7 {[%clk 0:00:03]} 58. Qc3 {[%clk 0:00:13]}  Qg2+ {[%clk 0:00:03]} 59. Kc1 {[%clk 0:00:13]}  Qh1+ {[%clk 0:00:03]} 60. Kb2 {[%clk 0:00:13]}  Qxh2+ {[%clk 0:00:04]} 61. Kb3 {[%clk 0:00:13]}  h4 {[%clk 0:00:04]} 62. gxh4 {[%clk 0:00:13]}  Qxh4 {[%clk 0:00:05]} 63. Qd4 {[%clk 0:00:13]}  Kg6 {[%clk 0:00:05]} 64. Kc4 {[%clk 0:00:13]}  Kf5 {[%clk 0:00:04]} 65. Qd7+ {[%clk 0:00:05]}  Kxf4 {[%clk 0:00:04]} 66. Kd3 {[%clk 0:00:06]}  Qg3+ {[%clk 0:00:04]} 67. Ke2 {[%clk 0:00:06]}  Qf3+ {[%clk 0:00:04]} 68. Ke1 {[%clk 0:00:06]}  f5 {[%clk 0:00:04]} 69. Qd6+ {[%clk 0:00:06]}  Kg4 {[%clk 0:00:05]} 70. Qg6+ {[%clk 0:00:06]}  Kh3 {[%clk 0:00:04]} 71. Qh6+ {[%clk 0:00:06]}  Kg2 {[%clk 0:00:04]} 72. Qg5+ {[%clk 0:00:06]}  Qg3+ {[%clk 0:00:05]} 73. Qxg3+ {[%clk 0:00:06]}  Kxg3 {[%clk 0:00:06]} 74. Kf1 {[%clk 0:00:07]}  Kf3 {[%clk 0:00:05]} 75. Ke1 {[%clk 0:00:07]}  f4 {[%clk 0:00:06]} 76. Kf1 {[%clk 0:00:06]}  Ke3 {[%clk 0:00:06]} 77. Ke1 {[%clk 0:00:07]}  f3 {[%clk 0:00:07]} 78. Kf1 {[%clk 0:00:07]}  f2 {[%clk 0:00:08]} 0-1


[Site "https://www.chess.com"]